[Event "15th Paleochora Open 2022"]
[Site "Paleochora"]
[Date "2022.07.17"]
[Round "1.7"]
[White "Kourkoulos-Arditis, Stamatis"]
[Black "Seretakis, Nikolas"]
[Result "1/2-1/2"]
[ECO "B76"]
[WhiteElo "2535"]
[BlackElo "2045"]
[Annotator "TA"]
[PlyCount "76"]
[EventDate "2022.07.17"]
[EventType "swiss"]
[EventCountry "GRE"]
[SourceTitle "playchess.com"]
[Source "ChessBase"]
[SourceQuality "1"]
[TimeControl "40/5400+30:900+30"]

{[%evp 21,76,77,75,78,86,52,49,50,39,43,34,27,31,39,41,27,50,3,30,0,0,-21,-14,-17,0,0,-8,-14,0,0,0,0,7,-45,-40,-33,-33,-56,-27,-29,-24,-21,-23,-50,-21,-33,-25,-78,-61,-78,-78,-78,-78,-78,-8,-8,-16]} 1. e4 {[%emt 0:00:03]} c5 {[%emt 0:00:25]} 2. Nf3 {[%emt 0:00:04]} d6 {[%emt 0:00:05]} 3. d4 {[%emt 0:00:04]} cxd4 {[%emt 0:00:05]} 4. Nxd4 {[%emt 0:00:04]} Nf6 {[%emt 0:00:05]} 5. Nc3 {[%emt 0:00:03]} g6 {[%emt 0:00:05]} 6. Be3 {[%emt 0:00:35]} Bg7 {[%emt 0:00:06]} 7. f3 {[%emt 0:00:03]} O-O {[%emt 0:00:20]} 8. Qd2 {[%emt 0:00:04]} Nc6 {[%emt 0:00:15]} 9. O-O-O {[%emt 0:00:08]} Nxd4 {[%emt 0:00:46]} 10. Bxd4 {[%emt 0:00:06]} Qa5 {[%emt 0:01:18]} 11. Kb1 {[%emt 0:01:43]} e5 {[%emt 0:00:07]} 12. Be3 {[%emt 0:02:59] Threatens to win with Nb5. B76: Sicilian Dragon: Yugoslav Attack, 9 g4 and 9 0-0-0.} Be6 {[%emt 0:00:11]} 13. Nd5 {[%emt 0:10:25]} (13. Qxd6 Bxa2+ $1 14. Nxa2 Rfd8 $11) 13... Qxd2 {[%emt 0:00:44]} 14. Nxf6+ {[%emt 0:00:05] White is slightly better.} Bxf6 {[%emt 0:00:10]} 15. Rxd2 {[%emt 0:00:06]} Be7 {[%emt 0:01:42]} 16. Be2 {[%emt 0:00:52]} f5 {[%emt 0:01:45] [#]} 17. exf5 $146 {[%emt 0:01:00]} ({Predecessor:} 17. h4 f4 18. Bf2 Kg7 19. g3 fxg3 20. Bxg3 Rad8 21. c4 b6 22. Bf2 Rf4 23. Bg3 {½-½ (49) Mrvova,A-Horvath,M (2270) Trencin 1995}) 17... gxf5 {[%emt 0:02:09]} 18. f4 {[%emt 0:00:07]} Rac8 {[%emt 0:02:23]} 19. Bf3 {[%emt 0:19:51]} (19. Rg1 $14) 19... b6 $11 {[%emt 0:07:00]} 20. Re1 {[%emt 0:03:58]} e4 {[%emt 0:08:39]} 21. Be2 {[%emt 0:01:49]} d5 {[%emt 0:03:09]} 22. c3 {[%emt 0:01:58]} Bf6 {[%emt 0:03:48]} 23. Bd1 {[%emt 0:07:23]} Rcd8 {[%emt 0:00:41]} 24. Bb3 {[%emt 0:00:09]} Kf7 {[%emt 0:04:39][%cal Bg8f7,Bf7e6,Be6d5][%mdl 32]} 25. Red1 {[%emt 0:01:08][%cal Rb3d5]} Rg8 {[%emt 0:00:35]} 26. g3 {[%emt 0:06:58]} h5 {[%emt 0:02:25]} 27. a4 {[%emt 0:08:59]} ({White should play} 27. Bxd5 $11 Bxd5 28. Rxd5) 27... d4 $15 {[%emt 0:09:19]} 28. Bxe6+ {[%emt 0:00:06]} Kxe6 {[%emt 0:00:04]} 29. cxd4 {[%emt 0:00:09]} Kd5 {[%emt 0:00:13]} 30. Rc2 {[%emt 0:02:42]} Rc8 {[%emt 0:01:36]} 31. Rdc1 {[%emt 0:00:15]} Rxc2 {[%emt 0:00:14]} 32. Rxc2 $11 {[%emt 0:00:03][%cal Oa4a5][%mdl 4096] Endgame KRB-KRB} Rg7 {[%emt 0:00:36]} (32... Bxd4 $2 33. Rd2 $18) 33. Rc8 {[%emt 0:05:52]} Rd7 {[%emt 0:00:44]} 34. Rc2 {[%emt 0:05:41]} ({Much weaker is} 34. Rf8 Bxd4 35. Bc1 Ke6 $17) (34. Kc1 $11) 34... Rd6 $17 {[%emt 0:07:29]} (34... Bxd4 $2 35. Bxd4 Ke6 36. Rd2 $18) 35. b3 {[%emt 0:08:47] [#]} Rc6 $1 {[%emt 0:02:43]} ({Of course not} 35... Bxd4 36. Rd2 Kc5 37. Rc2+ Kd5 38. Rd2 $11) 36. Rxc6 {[%emt 0:00:59]} Kxc6 {[%emt 0:00:04]} 37. Kc2 {[%emt 0:00:03]} Kd5 {[%emt 0:04:28][%mdl 1024] Black has strong compensation.} 38. Kc3 {[%emt 0:00:05]} a6 {[%emt 0:02:06] Weighted Error Value: White=0.10 (very precise) /Black=0.05 (flawless)} 1/2-1/2

[Event "15th Paleochora Open 2022"]
[Site "Paleochora"]
[Date "2022.07.17"]
[Round "1.8"]
[White "Zografos, Achilleas"]
[Black "David, Alberto"]
[Result "0-1"]
[ECO "B10"]
[WhiteElo "2037"]
[BlackElo "2534"]
[Annotator "TA"]
[PlyCount "114"]
[EventDate "2022.07.17"]
[EventType "swiss"]
[EventCountry "GRE"]
[SourceTitle "playchess.com"]
[Source "ChessBase"]
[SourceQuality "1"]
[TimeControl "40/5400+30:900+30"]

{[%evp 11,114,10,8,2,16,9,12,0,0,-1,19,19,25,25,12,22,22,19,47,30,42,27,19,19,25,15,16,0,0,-17,-36,-55,-47,-100,-103,-95,-96,-112,-118,-118,-118,-118,-113,-97,-100,-153,-153,-162,-157,-160,-118,-129,-102,-102,-104,-101,-77,-76,-63,-63,-56,-72,-70,-79,-72,-168,-168,-168,-168,-182,-174,-327,-326,-495,-467,-467,-462,-466,-455,-422,-351,-450,-332,-264,0,-458,-444,-451,-397,-456,-456,-433,-434,-410,-407,-2294,-2144,-4501,-2312,-12798,-12772,-5065,-5435,-1470,-1136]} 1. e4 {[%emt 0:00:02]} c6 {[%emt 0:00:39]} 2. c4 {[%emt 0:00:39]} d5 {[%emt 0:00:05]} 3. exd5 {[%emt 0:00:09]} cxd5 {[%emt 0:00:04]} 4. cxd5 {[%emt 0:00:11]} Nf6 {[%emt 0:00:06]} 5. Nc3 {[%emt 0:00:08]} Nxd5 {[%emt 0:00:23]} 6. Nf3 {[%emt 0:00:09]} Nc6 {[%emt 0:00:18]} 7. Bb5 {[%emt 0:01:30] B10: Caro-Kann: 2 d3 and 2 c4.} g6 {[%emt 0:01:30]} 8. Qa4 {[%emt 0:03:10]} Nb6 {[%emt 0:01:30]} 9. Qh4 {[%emt 0:02:57] The position is equal.} Bg7 {[%emt 0:00:49]} 10. d4 {[%emt 0:06:39] [#]} h6 $146 {[%emt 0:03:13]} (10... O-O $5 {[%cal Rc6d4]}) ({Predecessor:} 10... O-O 11. Bxc6 bxc6 12. O-O Bf5 13. Bh6 e6 14. Bxg7 Qxh4 15. Nxh4 Kxg7 16. Nxf5+ gxf5 {½-½ (34) Kosteniuk,A (2546)-Gunina,V (2506) Chess.com INT 2019}) 11. O-O {[%emt 0:11:27]} Bf5 {[%emt 0:04:09]} 12. Re1 {[%emt 0:10:34][%cal Od4d5]} e6 {[%emt 0:19:21] Against d5} 13. Qxd8+ {[%emt 0:12:42]} Rxd8 {[%emt 0:00:03]} 14. Ne5 {[%emt 0:02:22]} O-O {[%emt 0:02:53]} 15. Bxc6 {[%emt 0:06:18]} bxc6 {[%emt 0:00:09]} 16. Be3 {[%emt 0:05:46]} g5 {[%emt 0:11:39]} 17. Nxc6 {[%emt 0:01:24]} Rd7 {[%emt 0:00:04]} 18. Ne5 {[%emt 0:01:40]} Rb7 {[%emt 0:03:59]} 19. b3 {[%emt 0:03:29]} Rc8 {[%emt 0:05:54]} 20. Rac1 {[%emt 0:01:00]} f6 {[%emt 0:00:24]} 21. Nf3 {[%emt 0:01:30]} Bf8 $1 {[%emt 0:00:05] Strongly threatening ...Ba3.} 22. Nb5 {[%emt 0:05:28] [#] Against Ba3} (22. Nd1 $15) 22... Rxc1 $1 $17 {[%emt 0:01:22]} 23. Rxc1 {[%emt 0:00:10]} Nd5 {[%emt 0:00:05] Inhibits Nc7.} 24. Nc3 {[%emt 0:06:35]} Ba3 $36 {[%emt 0:07:51][%mdl 2048] Black is really pushing. Black is more active.} 25. Nxd5 {[%emt 0:01:22]} Bxc1 {[%emt 0:00:04] A strong pair of Bishops.} 26. Nxf6+ {[%emt 0:00:52]} Kf7 {[%emt 0:00:02]} 27. Bxc1 {[%emt 0:01:51]} Kxf6 {[%emt 0:00:04][%mdl 4096] Endgame KRB-KBN} 28. d5 {[%emt 0:05:31]} (28. h4 $142) 28... exd5 {[%emt 0:00:41]} 29. Bb2+ {[%emt 0:00:21]} Kg6 {[%emt 0:25:41]} 30. Nd4 {[%emt 0:04:41]} g4 {[%emt 0:10:15] Inhibits h3.} 31. Kf1 {[%emt 0:01:27]} Re7 {[%emt 0:00:39]} 32. f3 {[%emt 0:00:50]} gxf3 {[%emt 0:00:38]} 33. gxf3 {[%emt 0:00:02]} Bd7 {[%emt 0:01:14]} 34. Kf2 {[%emt 0:00:48]} Kh5 {[%emt 0:00:13]} 35. Ne2 {[%emt 0:02:05]} Bb5 {[%emt 0:00:19]} 36. Nd4 {[%emt 0:00:52]} Bd3 {[%emt 0:00:09]} 37. Ba3 {[%emt 0:00:41]} Rc7 {[%emt 0:00:20]} 38. Ke3 {[%emt 0:01:05] [#]} (38. Bb4 $17 {might work better.}) 38... Bb1 $1 $19 {[%emt 0:00:24]} 39. Bd6 {[%emt 0:00:57]} Rc3+ {[%emt 0:00:11]} 40. Kf4 {[%emt 0:00:00]} Bxa2 {[%emt 0:00:00]} 41. Ke5 $2 {[%emt 0:04:11]} (41. b4) 41... Bxb3 {[%emt 0:02:56] ...a5 is the strong threat.} 42. Ke6 {[%emt 0:05:59]} (42. Bb4 {was necessary.} Re3+ 43. Kf4) 42... Re3+ {[%emt 0:07:24]} 43. Be5 {[%emt 0:01:49]} Bd1 {[%emt 0:00:23]} 44. f4 {[%emt 0:00:39]} Bg4+ {[%emt 0:00:04]} 45. Kxd5 {[%emt 0:05:12]} Kg6 {[%emt 0:00:08] Against f5+. Hoping for ...a5.} 46. Kc5 {[%emt 0:00:23]} Bd7 {[%emt 0:00:35] White must now prevent ...a5.} 47. Kd6 {[%emt 0:00:27]} Bg4 {[%emt 0:01:33]} (47... Bh3 48. Nc6 a6) 48. Kc5 {[%emt 0:00:18]} a5 {[%emt 0:00:55][%cal Ba7a5,Ba5a4,Ba4a3,Ba3a2][%mdl 32] And now ...a4 would win.} 49. Kb5 {[%emt 0:00:18]} Ra3 {[%emt 0:00:07]} 50. Bd6 {[%emt 0:01:11]} Bd7+ {[%emt 0:00:06]} 51. Kc4 {[%emt 0:00:34]} Rh3 {[%emt 0:00:06]} 52. Bc7 {[%emt 0:00:18]} a4 {[%emt 0:00:05] Threatens to win with ...a3.} 53. Kb4 {[%emt 0:00:06]} (53. f5+ $142 Bxf5 54. Bg3) 53... a3 {[%emt 0:00:09] ( -> ...a2). Black is clearly winning.} 54. Be5 {[%emt 0:00:43]} a2 {[%emt 0:00:10]} 55. Nb3 {[%emt 0:00:07]} Be6 {[%emt 0:00:36]} 56. Na1 {[%emt 0:01:17]} Kf5 {[%emt 0:01:12]} 57. Nc2 {[%emt 0:00:28]} Ke4 {[%emt 0:00:05] Weighted Error Value: White=0.52/Black=0.12 (very precise)} 0-1

[Event "15th Paleochora Open 2022"]
[Site "Paleochora"]
[Date "2022.07.17"]
[Round "1.9"]
[White "Stremavicius, Titas"]
[Black "Ribreau, Herve"]
[Result "1-0"]
[ECO "A30"]
[WhiteElo "2532"]
[BlackElo "2031"]
[Annotator "TA"]
[PlyCount "36"]
[EventDate "2022.07.17"]
[EventType "swiss"]
[EventCountry "GRE"]
[SourceTitle "playchess.com"]
[Source "ChessBase"]
[SourceQuality "1"]
[TimeControl "40/5400+30:900+30"]

{[%evp 20,36,64,64,245,250,238,250,356,364,382,287,409,373,535,528,720,697,1366]} 1. c4 {[%emt 0:00:03]} e6 {[%emt 0:00:21]} 2. g3 {[%emt 0:00:07]} c5 {[%emt 0:02:13]} 3. Nf3 {[%emt 0:00:56]} b6 {[%emt 0:02:22]} 4. Bg2 {[%emt 0:01:14]} Bb7 {[%emt 0:00:18]} 5. O-O {[%emt 0:00:09]} Nf6 {[%emt 0:01:41]} 6. Nc3 {[%emt 0:01:08]} Be7 {[%emt 0:02:25]} 7. Re1 {[%emt 0:00:11]} O-O {[%emt 0:03:21]} 8. e4 {[%emt 0:00:14]} d6 {[%emt 0:00:10]} 9. d4 {[%emt 0:00:48]} cxd4 {[%emt 0:08:15]} 10. Nxd4 {[%emt 0:00:52]} Qc8 {[%emt 0:05:54]} 11. b3 {[%emt 0:00:27]} d5 $2 {[%emt 0:13:07] [#] A30: Symmetrical English: Double Fianchetto and Hedgehog.} (11... a6 $14) 12. exd5 $18 {[%emt 0:01:22]} Bb4 {[%emt 0:00:21] [#]} 13. Bd2 $146 {[%emt 0:01:49][%cal Bc1d2,Bd2c3,Bc3b2][%mdl 32]} ({Predecessor:} 13. Bb2 exd5 14. Qf3 Ne4 15. Nf5 f6 16. a3 Bc5 17. Nxe4 dxe4 18. Qg4 g6 19. Nh6+ {1-0 (47) Guerlach,F (2005)-Arda,C (1871) Paris 2015}) 13... Bxc3 {[%emt 0:11:40]} (13... Re8 $142 14. dxe6 Bxg2) 14. Bxc3 {[%emt 0:00:12]} exd5 {[%emt 0:00:57]} 15. Nb5 {[%emt 0:01:29]} Ne4 {[%emt 0:04:53]} (15... Nbd7 {is a better defense.} 16. a4 d4) 16. Bb2 {[%emt 0:18:32] This bishop pair is nice.} Qf5 {[%emt 0:13:54]} (16... f5 $142 17. cxd5 Na6) 17. Qd4 {[%emt 0:01:01][%csl Gb2][%cal Rd4g7] [#] Active counter play!} Nf6 {[%emt 0:10:17]} 18. Nd6 {[%emt 0:00:58][%csl LRb7,LRf5]} Qc8 {[%emt 0:02:24] Black did not feel at home in the position after the opening.  Weighted Error Value: White=0.25 (precise) /Black=1.13} 1-0

[Event "15th Paleochora Open 2022"]
[Site "Paleochora"]
[Date "2022.07.17"]
[Round "1.10"]
[White "Thelen, Thomas"]
[Black "Kelires, Andreas"]
[Result "0-1"]
[ECO "E16"]
[WhiteElo "2029"]
[BlackElo "2528"]
[Annotator "TA"]
[PlyCount "72"]
[EventDate "2022.07.17"]
[EventType "swiss"]
[EventCountry "GRE"]
[SourceTitle "playchess.com"]
[Source "ChessBase"]
[SourceQuality "1"]
[TimeControl "40/5400+30:900+30"]

{[%evp 17,72,16,18,10,12,13,8,1,7,0,0,-16,0,-13,0,-3,0,-13,-18,-46,-53,-41,-29,-45,-53,-60,-17,0,-2,-8,0,0,20,-103,-71,-124,-100,-71,-73,-348,-364,-360,-352,-559,-525,-614,-595,-2268,-1959,-29979,-29977,-29985,-29986,-29983,-12831,-2126,-1963]} 1. d4 {[%emt 0:00:03]} Nf6 {[%emt 0:00:04]} 2. c4 {[%emt 0:00:10]} e6 {[%emt 0:00:06]} 3. Nf3 {[%emt 0:00:15]} b6 {[%emt 0:00:20]} 4. g3 {[%emt 0:00:32]} Bb7 {[%emt 0:00:17]} 5. Bg2 {[%emt 0:00:11]} Bb4+ {[%emt 0:00:19]} 6. Bd2 {[%emt 0:01:09]} a5 {[%emt 0:00:46]} 7. O-O {[%emt 0:04:29]} O-O {[%emt 0:00:05]} 8. Bg5 {[%emt 0:01:28]} Be7 {[%emt 0:01:59]} 9. Nc3 {[%emt 0:02:16]} Ne4 {[%emt 0:01:12]} 10. Nxe4 {[%emt 0:09:04] E16: Queen's Indian: 4 g3 Bb7 5 Bg2 Bb4+.} Bxe4 {[%emt 0:00:06]} 11. Bxe7 {[%emt 0:00:13]} Qxe7 {[%emt 0:00:01]} 12. Qd2 {[%emt 0:04:22] The position is equal.} d6 {[%emt 0:02:44] [#]} 13. b3 $146 {[%emt 0:03:18]} ({Predecessor:} 13. Rac1 Nd7 14. Rfd1 f5 15. Qe3 Rae8 16. b3 h6 17. Nh4 Qf7 18. f3 Bb7 19. f4 Bxg2 20. Kxg2 {0-1 (54) Wan Kenobi,T (2494)-Carlsen,M (2837) Chess.com INT 2017}) 13... Nd7 {[%emt 0:00:48]} 14. a3 {[%emt 0:01:03]} (14. Nh4 $5 {[%cal Rg2e4]} Bxg2 15. Nxg2 $11) 14... h6 {[%emt 0:12:36]} 15. b4 {[%emt 0:11:44]} (15. Nh4 $5 {[%cal Rg2e4]} Bxg2 16. Nxg2 $11) 15... c6 {[%emt 0:01:42]} 16. Qe3 {[%emt 0:07:14]} d5 {[%emt 0:03:23]} 17. c5 {[%emt 0:00:41]} Rfb8 {[%emt 0:06:08]} 18. Rfc1 {[%emt 0:02:43]} bxc5 {[%emt 0:02:55]} 19. bxc5 {[%emt 0:00:13]} a4 {[%emt 0:09:41]} 20. Ne5 {[%emt 0:05:22]} Nxe5 {[%emt 0:01:37]} 21. Bxe4 {[%emt 0:00:26]} Nc4 {[%emt 0:08:25]} ({Resist} 21... dxe4 22. dxe5 Qd8 23. Rd1 $16 (23. Qxe4 Qd5 $11)) 22. Rxc4 {[%emt 0:04:30]} dxc4 {[%emt 0:00:04]} 23. Bxc6 {[%emt 0:00:13]} Ra6 {[%emt 0:01:12]} 24. Be4 {[%emt 0:03:05]} Ra7 {[%emt 0:08:32]} 25. Rc1 {[%emt 0:02:13]} (25. Rd1 $11) 25... Rb3 $17 {[%emt 0:01:05][%cal Bb8b3,Bb3a3,Ba3a1,Ba1d1][%mdl 32]} 26. Qf4 {[%emt 0:02:35]} (26. Qd2 $142) 26... g5 {[%emt 0:06:43]} 27. Qd2 {[%emt 0:00:36]} Rxa3 {[%emt 0:01:52] White must now prevent ...Rb3.} 28. Rxc4 $2 {[%emt 0:00:49][%mdl 8192] This costs White the game.} (28. c6 $17) 28... Ra1+ $19 {[%emt 0:05:37]} 29. Kg2 {[%emt 0:00:08]} a3 {[%emt 0:00:15] Inhibits Qb2.} 30. Qc3 {[%emt 0:11:01]} (30. c6 {might work better.} Qc7 31. Qc2) 30... Rd1 {[%emt 0:00:05] [#] Threatens to win with ...a2.} 31. c6 {[%emt 0:03:08]} Qc7 {[%emt 0:01:16] And now ...a2 would win.} 32. Qf3 {[%emt 0:03:43]} a2 {[%emt 0:01:30]} 33. Qh5 {[%emt 0:00:05]} a1=Q {[%emt 0:00:51]} 34. Qxh6 {[%emt 0:00:06]} Rg1+ {[%emt 0:00:04]} 35. Kf3 {[%emt 0:00:39]} g4+ {[%emt 0:04:35]} (35... Ra3+ $142 36. Kg4 Qf4+ 37. Kh5 Qxe4 38. Qxg5+ Qg6+ 39. Qxg6+ fxg6+ 40. Kh4 Qa2 41. Rc5 Qd2 42. Rb5 Qxe2 43. c7 Rc1 44. Rg5 Qxf2 45. Rxg6+ Kf7 46. Rg4 Qxh2+ 47. Kg5 Ra5+ 48. d5 Rxd5+ 49. Kf4 Qf2+ 50. Ke4 Re1#) 36. Kxg4 {[%emt 0:00:09]} f5+ {[%emt 0:00:13] Weighted Error Value: White=0.90/Black=0.20 (precise)} 0-1

[Event "15th Paleochora Open 2022"]
[Site "Paleochora"]
[Date "2022.07.17"]
[Round "1.11"]
[White "Yilmazyerli, Mert"]
[Black "Stefan, Victor"]
[Result "1-0"]
[ECO "D32"]
[WhiteElo "2520"]
[BlackElo "2026"]
[Annotator "TA"]
[PlyCount "59"]
[EventDate "2022.07.17"]
[EventType "swiss"]
[EventCountry "GRE"]
[SourceTitle "playchess.com"]
[Source "ChessBase"]
[SourceQuality "1"]
[TimeControl "40/5400+30:900+30"]

{[%evp 12,59,34,29,38,41,70,22,19,10,22,19,45,50,14,23,33,19,25,31,60,20,31,22,91,25,27,0,28,18,23,24,30,7,7,20,20,11,93,32,212,217,877,832,29993,29994,29994,29995,29995,29996]} 1. c4 {[%emt 0:00:06]} e6 {[%emt 0:00:14][%cal Be7e6,Be6d5,Bd5d4][%mdl 32]} 2. Nc3 {[%emt 0:01:28]} d5 {[%emt 0:00:08]} 3. d4 {[%emt 0:00:05]} c5 {[%emt 0:00:53]} 4. cxd5 {[%emt 0:00:07]} exd5 {[%emt 0:00:20]} 5. Nf3 {[%emt 0:00:04]} Nc6 {[%emt 0:00:10]} 6. dxc5 {[%emt 0:00:53]} d4 {[%emt 0:00:17]} 7. Na4 {[%emt 0:00:05]} Bxc5 {[%emt 0:00:26][%mdl 64] Decoy. D32: Tarrasch Defence: Sidelines and lines without g3.} 8. Nxc5 {[%emt 0:00:04]} Qa5+ {[%emt 0:00:10]} 9. Bd2 {[%emt 0:00:04]} ({Better is} 9. Qd2 $1 $14 Qxc5 10. e3) 9... Qxc5 $11 {[%emt 0:00:05] The position is equal.} 10. Rc1 {[%emt 0:00:05]} Qb6 {[%emt 0:00:06]} 11. e3 {[%emt 0:00:03]} Nge7 {[%emt 0:01:14]} 12. Bc4 {[%emt 0:05:07]} O-O {[%emt 0:02:57]} 13. exd4 {[%emt 0:21:02]} Nxd4 {[%emt 0:04:33]} 14. Nxd4 {[%emt 0:05:16]} Qxd4 {[%emt 0:00:09]} 15. O-O {[%emt 0:08:16] [#]} Qxb2 $146 {[%emt 0:22:02]} ({Predecessor:} 15... Bg4 16. Qc2 Nc6 17. Be3 Qf6 18. Qe4 Be6 19. Bxe6 Qxe6 20. Qxe6 fxe6 21. Rfd1 Rfd8 {½-½ (34) Harding,T (2003)-Cafolla,P (1958) Dublin 2021}) 16. Qe1 {[%emt 0:11:13]} Nc6 $1 {[%emt 0:03:43]} 17. Bc3 {[%emt 0:03:08][%mdl 1024] White has compensation.} Qb6 {[%emt 0:05:19]} (17... Qa3 $11) 18. Qe4 {[%emt 0:03:09]} (18. Bd3 $1 $16 {aiming for Qe4.} f5 19. Qe2) 18... Qc5 $1 {[%emt 0:08:36]} 19. Bd5 {[%emt 0:10:45][%cal Oc3g7] This bishop pair is nice.} Qd6 {[%emt 0:01:39]} (19... Rd8 $5 {[%cal Rc5d5]} 20. Bxc6 Qxc6 $15) 20. Rfe1 {[%emt 0:05:16]} Qg6 {[%emt 0:09:31]} 21. Qf4 {[%emt 0:00:09] Threatens to win with Re3.} Be6 {[%emt 0:03:45] [#]} 22. Re3 $1 {[%emt 0:08:46] Hoping for Be4.} Bxd5 {[%emt 0:16:39][%csl Gd5][%cal Rg6g2]} 23. Rg3 {[%emt 0:00:05]} Bxa2 {[%emt 0:00:26]} 24. Rxg6 {[%emt 0:05:24]} hxg6 {[%emt 0:00:02]} (24... fxg6 $11 {keeps the balance.} 25. Qa4 Be6) 25. h4 {[%emt 0:01:26] White is more active.} (25. Qd2 $1 $16 {[%cal Rd2a2]} Be6 26. Qb2) 25... a5 $2 {[%emt 0:06:05] [#] Black cannot hold the game after this.} (25... f6 $14) 26. h5 $1 $40 {[%emt 0:01:02][%mdl 128] White goes for the king.} gxh5 $2 {[%emt 0:00:48] [#]} (26... Rae8 27. Qg5 f6 28. Qxg6 Bf7) 27. Bxg7 $1 {[%emt 0:00:15][%mdl 576] White wants to mate with Bf6. Decoy} Kxg7 {[%emt 0:00:59]} (27... f6 28. Bxf6) 28. Qg5+ {[%emt 0:01:07] White mates.} Kh8 {[%emt 0:00:26]} 29. Qxh5+ {[%emt 0:00:08]} Kg7 {[%emt 0:00:19]} 30. Qg5+ {[%emt 0:00:40] Weighted Error Value: White=0.12 (very precise) /Black=0.48} 1-0

[Event "15th Paleochora Open 2022"]
[Site "Paleochora"]
[Date "2022.07.17"]
[Round "1.12"]
[White "Karakatsanis, Nikolaos"]
[Black "Santiago, Yago De Moura"]
[Result "0-1"]
[ECO "C01"]
[WhiteElo "2025"]
[BlackElo "2513"]
[Annotator "TA"]
[PlyCount "80"]
[EventDate "2022.07.17"]
[EventType "swiss"]
[EventCountry "GRE"]
[SourceTitle "playchess.com"]
[Source "ChessBase"]
[SourceQuality "1"]
[TimeControl "40/5400+30:900+30"]

{[%evp 13,80,-8,0,-12,-15,-16,-15,-8,-14,-21,-22,-57,7,0,1,-32,0,-95,-58,-61,-50,-158,-153,-119,-77,-218,-82,-80,-66,-65,-68,-68,-81,-83,-75,-75,-69,-130,-138,-124,-132,-119,-77,-127,-116,-114,-127,-150,-164,-211,-210,-299,-110,-132,-81,-67,-36,-34,-41,-240,-26,-26,-27,-941,-926,-913,-854,-1801,-1698]} 1. e4 {[%emt 0:00:09]} e6 {[%emt 0:14:23]} 2. d4 {[%emt 0:02:54]} d5 {[%emt 0:00:09]} 3. exd5 {[%emt 0:00:16]} exd5 {[%emt 0:00:08]} 4. Bd3 {[%emt 0:00:03]} c5 {[%emt 0:00:26]} 5. Qe2+ {[%emt 0:04:07]} Be7 {[%emt 0:01:55]} 6. dxc5 {[%emt 0:02:38]} Nf6 {[%emt 0:00:16]} 7. Nf3 {[%emt 0:00:23]} O-O {[%emt 0:00:10]} 8. h3 {[%emt 0:05:49] C01: French: Exchange Variation.} Bxc5 {[%emt 0:01:25]} 9. O-O {[%emt 0:00:12]} Re8 {[%emt 0:01:28]} 10. Qd1 {[%emt 0:01:09] The position is equal.} Ne4 {[%emt 0:01:25] With the idea ...Qb6.} 11. Nc3 {[%emt 0:05:38]} Nc6 {[%emt 0:12:06] [#]} 12. Bf4 $146 {[%emt 0:04:39]} ({Predecessor:} 12. Bxe4 dxe4 13. Qxd8 Nxd8 14. Re1 f5 15. Nb5 Ne6 16. Ng5 Nd4 17. Nc7 Nxc2 18. Rd1 {½-½ (27) Cardoso,S (2152)-Orlov,V (2237) LSS email 2015}) 12... a6 {[%emt 0:05:02]} (12... Bf5 $15) 13. Bxe4 $11 {[%emt 0:08:19]} dxe4 {[%emt 0:00:08]} 14. Nd2 {[%emt 0:00:57]} f5 {[%emt 0:06:36]} 15. Nc4 {[%emt 0:01:19]} (15. Nb3 $11 {remains equal.} Ba7 16. Qxd8 Rxd8 17. Bg5) 15... Nd4 $36 {[%emt 0:07:51][%mdl 2048] Black has some pressure.} 16. Na4 {[%emt 0:08:44]} Be6 {[%emt 0:00:57]} 17. Ne5 {[%emt 0:25:21]} (17. Nxc5 $15 Bxc4 18. Nxb7 Ne2+ 19. Qxe2 Bxe2 20. Nxd8 Bxf1 21. Nb7) 17... Ba7 $1 $17 {[%emt 0:00:36] Hoping for ...Qh4. This bishop pair is nice.} 18. c3 {[%emt 0:00:20]} Nb5 {[%emt 0:05:33] aiming for ...Qh4.} 19. c4 {[%emt 0:05:00] [#]} (19. Qh5 $17 {keeps fighting.}) 19... Nd4 {[%emt 0:03:01]} (19... Qh4 $1 $19 {[%cal Rh4f4]} 20. Be3 Bxe3 21. fxe3 Qg3 22. cxb5 axb5) 20. c5 {[%emt 0:00:07]} Qd5 {[%emt 0:00:19]} 21. Rc1 {[%emt 0:03:56]} Rad8 {[%emt 0:01:06]} 22. Nc4 $1 {[%emt 0:00:46]} Qxc4 $1 {[%emt 0:12:13]} ({Much less strong is} 22... Bxc5 23. Ne3 Qxa2 24. Nxc5 $14) 23. Rxc4 {[%emt 0:00:05]} Bxc4 {[%emt 0:00:04]} ({Of course not} 23... Nf3+ $6 24. gxf3 Rxd1 25. Rxd1 $11) 24. Bd6 {[%emt 0:00:07] [#]} Bxc5 {[%emt 0:00:08]} 25. Bxc5 {[%emt 0:01:02]} (25. Nxc5 $15 Rxd6 26. Nxb7) 25... Ne2+ {[%emt 0:00:10][%mdl 64] Discovered Attack} 26. Kh2 {[%emt 0:00:34] Black must now prevent Qc2.} Rxd1 {[%emt 0:00:09] Black is much more active.} 27. Rxd1 {[%emt 0:00:04]} Bd3 {[%emt 0:02:04]} 28. g3 {[%emt 0:01:34]} ({White should try} 28. Ba7) 28... b5 {[%emt 0:05:33]} 29. Nb6 {[%emt 0:04:06] Against Rc8} Kf7 {[%emt 0:00:06]} 30. Kg2 {[%emt 0:02:15]} g5 {[%emt 0:00:23]} 31. Rh1 {[%emt 0:04:55]} (31. a4 $142) 31... f4 $19 {[%emt 0:00:59]} 32. h4 {[%emt 0:00:17]} (32. Re1 $142) 32... f3+ $2 {[%emt 0:00:16]} (32... e3 $19 {has better winning chances.} 33. g4 exf2) 33. Kh3 $17 {[%emt 0:00:16]} gxh4 {[%emt 0:02:49]} ({Black should play} 33... Rg8 {...g4+ is the strong threat.} 34. Kg4 gxh4+ 35. Kxh4 Rg6) 34. Kxh4 {[%emt 0:01:18]} Re6 {[%emt 0:02:02] And now ...Rh6+ would win.} 35. Be3 {[%emt 0:00:46] Against Rh6+} Nd4 {[%emt 0:01:20] Threatens to win with ...Nf5+.} 36. Nd5 $2 {[%emt 0:01:35]} ({White has to play} 36. Kg4 $1 $15) 36... Nc2 $2 {[%emt 0:00:47]} (36... Rd6 $19 37. Bxd4 Rh6+ 38. Kg4 Rxh1) 37. Kg4 $1 $11 {[%emt 0:01:03]} Rd6 {[%emt 0:03:40]} 38. Nf4 {[%emt 0:01:37][%mdl 8192]} (38. Rxh7+ $11 Kg8 39. Rh5) 38... Nxe3+ $19 {[%emt 0:00:20] Black is clearly winning.} 39. fxe3 {[%emt 0:00:04]} f2 {[%emt 0:00:20]} 40. Nxd3 {[%emt 0:00:00]} exd3 {[%emt 0:00:00] Weighted Error Value: White=0.58/Black=0.31} ({Don't go for} 40... Rxd3 $2 41. Kf4 $19) 0-1